bitfinex/quotes_BTCUSD_20250618
["timestamp","ask_amount","ask_price","bid_price","bid_amount"]
[1750254884601,3.55513395,104340.0,104330.0,0.28347846]
[1750254884820,0.04806595,104340.0,104330.0,0.48660471]
[1750254885030,0.04806595,104340.0,104330.0,0.42785945]
[1750254885031,0.25046562,104340.0,104330.0,0.42785945]
[1750254885252,0.25764944,104340.0,104330.0,0.42885945]
[1750254885468,3.56471735,104340.0,104330.0,0.42885945]
[1750254885687,3.57430112,104340.0,104330.0,0.42885945]
[1750254885896,3.75639839,104340.0,104330.0,0.36775513]
[1750254886112,3.85254816,104340.0,104330.0,0.37939072]
[1750254886326,3.73723195,104340.0,104330.0,0.08129492]
[1750254886787,3.76005231,104340.0,104330.0,0.06344507]
[1750254887208,3.82505231,104340.0,104330.0,0.06344507]
[1750254887408,3.82505231,104340.0,104330.0,0.05452]
[1750254887887,3.82505231,104340.0,104330.0,0.06343955]
[1750254888176,3.92120153,104340.0,104330.0,0.06243955]
[1750254888697,3.92120153,104340.0,104330.0,0.06043955]
[1750254888898,3.92120153,104340.0,104330.0,0.05152]
[1750254889142,4.09520153,104340.0,104330.0,0.06044358]
[1750254889297,4.09520153,104340.0,104330.0,0.05152]
[1750254889648,4.09520153,104340.0,104330.0,0.00892391]
[1750254889877,3.72754261,104320.0,104310.0,0.49269809]
[1750254890076,3.72754261,104320.0,104310.0,0.5202715]
[1750254890276,3.72754289,104320.0,104310.0,0.20149384]
[1750254890523,3.71795728,104320.0,104310.0,0.05176228]
[1750254890768,3.71795728,104320.0,104310.0,0.00024228]
[1750254890972,3.97936194,104320.0,104310.0,0.00024228]
[1750254891176,3.80576194,104320.0,104310.0,0.00224228]
[1750254891402,3.97932194,104320.0,104310.0,0.00224228]
[1750254891960,3.97932194,104320.0,104310.0,0.00024228]
[1750254892217,3.98132194,104320.0,104310.0,0.00024228]
[1750254892437,3.98132194,104320.0,104310.0,0.00424228]
[1750254892643,3.98132194,104320.0,104310.0,0.00024228]
[1750254892849,3.98332194,104320.0,104310.0,0.00024228]
[1750254893057,4.07947116,104320.0,104310.0,0.00024228]
[1750254893281,4.20438621,104320.0,104310.0,0.00024228]
[1750254893483,4.24243794,104320.0,104310.0,0.00024228]
[1750254894150,3.71799735,104300.0,104290.0,0.00681089]
[1750254894330,3.96347648,104300.0,104290.0,0.00681089]
[1750254894533,3.91428201,104300.0,104290.0,0.00681089]
[1750254894973,3.71801767,104290.0,104280.0,0.27221834]
[1750254895187,0.0095903,104270.0,104260.0,0.08176]
[1750254895425,3.71807847,104260.0,104250.0,0.22590089]
[1750254895630,3.71807847,104260.0,104250.0,0.31141526]
[1750254895631,3.54543251,104260.0,104250.0,0.31141526]
[1750254895840,3.73726118,104260.0,104250.0,0.3018234]
[1750254896064,3.72767005,104260.0,104250.0,0.00047494]
[1750254896267,3.70848752,104260.0,104250.0,0.21150583]
[1750254896477,3.70848752,104260.0,104250.0,0.21150592]
[1750254896701,3.507068,104260.0,104250.0,0.22109797]
[1750254896902,3.507068,104260.0,104250.0,0.33952336]
[1750254896903,3.53584083,104260.0,104250.0,0.33952336]
[1750254897105,3.53584074,104260.0,104250.0,0.33952336]
[1750254897327,3.51665867,104260.0,104250.0,0.33952336]
[1750254897542,3.507068,104260.0,104250.0,0.33952336]
[1750254897780,3.52624611,104280.0,104270.0,0.22057988]
[1750254898000,3.52624565,104280.0,104270.0,0.22057988]
[1750254898215,3.51665673,104280.0,104270.0,0.22057988]
[1750254898423,3.53606144,104280.0,104270.0,0.33323988]
[1750254898756,3.54565036,104280.0,104270.0,0.33323988]
[1750254898958,3.66097806,104280.0,104270.0,0.33323988]
[1750254899400,3.67056753,104280.0,104270.0,0.33323988]
[1750254899623,3.66097806,104280.0,104270.0,0.33523988]
[1750254899856,3.65138868,104280.0,104270.0,0.33523988]
[1750254899994,3.63221066,104280.0,104270.0,0.28367988]
[1750254900367,3.63221066,104280.0,104270.0,0.45026749]
[1750254900368,3.54565027,104280.0,104270.0,0.45026749]
[1750254900606,3.75662008,104280.0,104270.0,0.26415557]
[1750254900801,3.74703125,104280.0,104270.0,0.27274605]
[1750254900941,3.73744215,104280.0,104270.0,0.01978585]
[1750254901146,3.83359137,104280.0,104270.0,0.002]
[1750254901367,3.85410199,104280.0,104270.0,0.004]
[1750254901570,4.05770199,104280.0,104270.0,0.004]
[1750254901781,4.05770199,104280.0,104270.0,0.01289728]
[1750254902561,4.08044355,104280.0,104270.0,0.01289728]
[1750254902942,4.08044355,104280.0,104270.0,0.004]
[1750254903381,4.17668531,104280.0,104270.0,0.004]
[1750254904818,4.17636531,104280.0,104270.0,0.004]
[1750254905053,3.78119433,104280.0,104270.0,0.004]
[1750254905274,3.92319433,104280.0,104270.0,0.004]
[1750254905474,3.92315433,104280.0,104270.0,0.004]
[1750254906106,3.75059433,104280.0,104270.0,0.20540011]
[1750254906316,3.56839183,104280.0,104270.0,0.21499041]
[1750254906531,3.55523928,104280.0,104270.0,0.40460721]
[1750254906737,3.57798237,104280.0,104270.0,0.40460721]
[1750254906917,3.55880453,104280.0,104270.0,0.40460721]
[1750254907169,0.02899344,104280.0,104270.0,0.40460721]
[1750254907376,0.23858217,104280.0,104270.0,0.40460721]
[1750254907582,3.707068,104280.0,104270.0,0.40460721]
[1750254907784,3.507068,104280.0,104270.0,0.40460721]
[1750254907969,3.507068,104280.0,104270.0,0.40461217]
[1750254908492,3.507068,104280.0,104270.0,0.41025297]
[1750254908852,0.01917774,104280.0,104270.0,0.40461502]
[1750254909058,0.24075589,104280.0,104270.0,0.59253502]
[1750254909265,0.23835613,104280.0,104270.0,0.59253502]
[1750254909478,0.23835613,104280.0,104270.0,0.0607829]
[1750254909479,3.76601202,104280.0,104270.0,0.0607829]
[1750254909645,3.76601202,104280.0,104270.0,0.0587829]
[1750254909646,3.86576588,104280.0,104270.0,0.0587829]
[1750254910073,3.86576588,104280.0,104270.0,0.0607829]
[1750254910273,0.2,104260.0,104250.0,0.24450425]
[1750254910427,3.507068,104260.0,104250.0,0.43331769]
[1750254910847,3.5463883,104260.0,104250.0,0.43331769]
[1750254911112,0.2393203,104260.0,104250.0,0.43331769]
[1750254911533,0.2393203,104260.0,104250.0,0.43831769]
[1750254912506,0.24891087,104260.0,104250.0,0.43831769]
[1750254912714,0.25850163,104260.0,104250.0,0.44331769]
[1750254912910,0.2393203,104260.0,104250.0,0.43831769]
[1750254913331,0.2393203,104260.0,104250.0,0.44331769]
[1750254914308,0.2,104260.0,104250.0,0.44331769]
[1750254914552,3.27820581,104270.0,104260.0,0.28480122]
[1750254914750,0.24935551,104280.0,104270.0,0.22058034]
[1750254914955,0.41098995,104270.0,104260.0,0.29766119]
[1750254915155,0.41098995,104270.0,104260.0,0.52893222]
[1750254915156,3.49878597,104270.0,104260.0,0.52893222]
[1750254915421,3.50837636,104270.0,104260.0,0.26089046]
[1750254915548,3.53122736,104270.0,104260.0,0.27048131]
[1750254915747,3.55069428,104270.0,104260.0,0.04988]
[1750254916006,3.55069428,104270.0,104260.0,0.24170812]
[1750254916217,3.55069428,104270.0,104260.0,0.05088]
[1750254916423,3.54110389,104270.0,104260.0,0.05088]
[1750254916593,3.63725311,104270.0,104260.0,0.05088]
[1750254916800,3.63725311,104270.0,104260.0,0.26189056]
[1750254916970,3.54110389,104270.0,104260.0,0.27148159]
[1750254917571,3.54110389,104270.0,104260.0,0.25229943]
[1750254917794,3.54110389,104270.0,104260.0,0.26189065]
[1750254918002,3.54110389,104270.0,104260.0,0.20241943]
[1750254918576,3.54110389,104270.0,104260.0,0.21201065]
[1750254918984,3.54110389,104270.0,104260.0,0.001]
[1750254919184,3.55730259,104270.0,104260.0,0.20241952]
[1750254919427,3.53151341,104270.0,104260.0,0.001]
[1750254919593,3.55998859,104270.0,104260.0,0.20241952]
[1750254920220,3.37776926,104270.0,104260.0,0.22160187]
[1750254920428,3.57916909,104270.0,104260.0,0.2311929]
[1750254920648,0.26149769,104270.0,104260.0,0.39792542]
[1750254920876,0.06149769,104270.0,104260.0,0.41246627]
[1750254921086,0.24765127,104290.0,104280.0,0.22055891]
[1750254921295,0.47194671,104290.0,104280.0,0.58176265]
[1750254921501,3.28779492,104280.0,104270.0,0.46455385]
[1750254921713,0.2704819,104280.0,104270.0,0.61067561]
[1750254921957,0.25130388,104280.0,104270.0,0.61067561]
[1750254922170,0.2608928,104280.0,104270.0,0.61067561]
[1750254922379,0.0608928,104280.0,104270.0,0.61067561]
[1750254922583,0.2421208,104280.0,104270.0,0.61067561]
[1750254922784,0.2345317,104280.0,104270.0,0.61067561]
[1750254922998,0.22494278,104280.0,104270.0,0.61067561]
[1750254923441,0.22494278,104280.0,104270.0,0.69333912]
[1750254923656,0.22494278,104280.0,104270.0,0.61067561]
[1750254924708,0.25362125,104280.0,104270.0,0.61067561]
[1750254925147,0.05362125,104280.0,104270.0,0.61067561]
[1750254925558,0.05362125,104280.0,104270.0,0.62521646]
[1750254925559,0.22494278,104280.0,104270.0,0.62521646]
[1750254925802,0.02494278,104280.0,104270.0,0.70933406]
[1750254926639,0.03898997,104290.0,104280.0,0.29979976]
[1750254926848,0.06194751,104290.0,104280.0,0.39604152]
[1750254927062,0.02295754,104290.0,104280.0,0.39604152]
[1750254927699,3.478206,104300.0,104290.0,0.29777861]
[1750254927911,0.23826454,104310.0,104300.0,0.28321662]
[1750254928113,0.27078964,104310.0,104300.0,0.42933838]
[1750254928327,0.27078955,104310.0,104300.0,0.42933838]
[1750254928540,0.27078946,104310.0,104300.0,0.42933838]
[1750254928963,0.28037571,104310.0,104300.0,0.42933838]
[1750254929171,0.25369724,104310.0,104300.0,0.42933838]
[1750254929381,0.23452492,104310.0,104300.0,0.42933838]
[1750254929632,0.28377864,104310.0,104300.0,0.42933838]
[1750254929851,0.29336508,104310.0,104300.0,0.42933838]
[1750254931102,0.28377864,104310.0,104300.0,0.42933838]
[1750254931314,0.29336508,104310.0,104300.0,0.42933838]
[1750254931535,0.2741923,104310.0,104300.0,0.42933838]
[1750254931744,0.28377855,104310.0,104300.0,0.42933838]
[1750254931954,0.29336508,104310.0,104300.0,0.42933838]
[1750254932193,0.53839556,104310.0,104300.0,0.09624176]
[1750254932411,3.56330798,104310.0,104300.0,0.51798385]
[1750254932633,3.55372173,104310.0,104300.0,0.50839631]
[1750254932852,3.55372173,104310.0,104300.0,0.53699902]
[1750254933062,3.36198556,104310.0,104300.0,0.54658619]
[1750254933283,3.36198446,104310.0,104300.0,0.63400796]
[1750254933523,0.26460623,104310.0,104300.0,0.61937327]
[1750254933737,0.24166747,104310.0,104300.0,0.61937327]
[1750254934189,0.04166747,104310.0,104300.0,0.63391412]
[1750254934398,0.002,104310.0,104300.0,0.73006334]
[1750254934604,0.002,104310.0,104300.0,0.78006334]
[1750254935265,5e-05,104330.0,104320.0,0.29911519]
[1750254935479,5e-05,104330.0,104320.0,0.56571695]
[1750254936184,5e-05,104330.0,104320.0,0.61571695]
[1750254936400,5e-05,104330.0,104320.0,0.6433883]
[1750254936627,5e-05,104330.0,104320.0,0.6483883]
[1750254937064,0.2,104370.0,104360.0,0.26603068]
[1750254937275,0.01916139,104370.0,104360.0,0.2974679]
[1750254937488,0.22170316,104370.0,104360.0,0.52700947]
[1750254937705,0.21930349,104370.0,104360.0,0.53659159]
[1750254937914,0.2193034,104370.0,104360.0,0.53659159]
[1750254938337,0.20972266,104370.0,104360.0,0.53659159]
[1750254938556,0.20972266,104370.0,104360.0,0.53647159]
[1750254938771,0.20972257,104370.0,104360.0,0.63262081]
[1750254938996,0.2001421,104370.0,104360.0,0.63262081]
[1750254939207,0.0001421,104370.0,104360.0,0.66552081]
[1750254940287,0.03998503,104370.0,104360.0,0.44568081]
[1750254940497,0.00972266,104370.0,104360.0,0.63110081]
[1750254940700,0.00972266,104370.0,104360.0,0.53495159]
[1750254940905,0.01930349,104370.0,104360.0,0.53491159]
[1750254941111,0.00972266,104370.0,104360.0,0.53483159]
[1750254941351,0.0001421,104370.0,104360.0,0.53483159]
[1750254942006,0.0001421,104370.0,104360.0,0.56555159]
[1750254942212,0.0001421,104370.0,104360.0,0.42410961]
[1750254942419,0.0001421,104370.0,104360.0,0.64218961]
[1750254942636,0.04952271,104370.0,104360.0,0.31663159]
[1750254942853,0.01930349,104370.0,104360.0,0.48615159]
[1750254943068,0.0001421,104370.0,104360.0,0.53467159]
[1750254943273,0.0001421,104370.0,104360.0,0.31663159]
[1750254943551,0.0001421,104370.0,104360.0,0.61393244]
[1750254943819,0.0001421,104370.0,104360.0,0.77170075]
[1750254944273,0.0001421,104370.0,104360.0,0.52054464]
[1750254944496,0.0001421,104370.0,104360.0,0.69034464]
[1750254945190,0.0001421,104370.0,104360.0,0.69234464]
[1750254945636,0.0001421,104370.0,104360.0,0.69634464]
[1750254945848,0.0001421,104370.0,104360.0,0.70034464]
[1750254946086,0.0001421,104370.0,104360.0,0.79550197]
[1750254946308,0.0001421,104370.0,104360.0,0.84550197]
[1750254947408,0.0001421,104370.0,104360.0,0.9244124]
[1750254948050,0.0001421,104370.0,104360.0,0.89550197]
[1750254948280,0.04136678,104410.0,104360.0,0.91218424]
[1750254948507,5e-05,104420.0,104410.0,0.39872514]
[1750254948735,5e-05,104420.0,104410.0,0.97223014]
[1750254948736,0.00052447,104420.0,104410.0,0.97223014]
[1750254948947,5e-05,104430.0,104420.0,0.34870404]
[1750254949171,0.00019222,104430.0,104420.0,0.8349458]
[1750254949381,3.3290952,104490.0,104480.0,0.2201367]
[1750254949600,3.3290952,104490.0,104480.0,0.40970419]
[1750254949601,3.49851325,104490.0,104480.0,0.40970419]
[1750254949812,3.51789445,104490.0,104480.0,0.04852]
[1750254950034,3.51789445,104490.0,104470.0,0.21056998]
[1750254950035,3.50832444,104490.0,104470.0,0.21056998]
[1750254950249,0.22154117,104480.0,104470.0,0.52505174]
[1750254950467,0.22154117,104480.0,104450.0,0.20597648]
[1750254950468,0.00957175,104470.0,104450.0,0.20597648]
[1750254950706,3.48879257,104470.0,104460.0,0.20103379]
[1750254950921,0.05906428,104490.0,104480.0,0.2201367]
[1750254951105,3.32700338,104490.0,104480.0,0.31637846]
[1750254951615,3.34614258,104490.0,104480.0,0.31637846]
[1750254951823,3.36528252,104490.0,104480.0,0.38605884]
[1750254952032,3.35571241,104490.0,104480.0,0.38605894]
[1750254952248,3.351142,104490.0,104480.0,0.32594912]
[1750254952455,3.33269999,104490.0,104480.0,0.32594912]
[1750254952679,3.34226964,104490.0,104480.0,0.32594912]
[1750254952905,3.33269999,104490.0,104480.0,0.32594912]
[1750254953116,3.32313053,104490.0,104480.0,0.32594912]
[1750254953329,0.04492453,104490.0,104480.0,0.32594912]
[1750254953532,0.00519217,104490.0,104480.0,0.48642247]
[1750254953952,0.00519217,104490.0,104480.0,0.41674217]
[1750254954172,0.00519217,104490.0,104480.0,0.34048997]
[1750254955670,0.00019217,104490.0,104480.0,0.34048997]
[1750254955881,0.00119217,104490.0,104480.0,0.34048997]
[1750254957362,0.00119217,104490.0,104480.0,0.37108997]
[1750254957574,0.00119217,104490.0,104480.0,0.52153656]
[1750254957802,0.00119217,104490.0,104480.0,0.55153656]
[1750254958005,0.00119217,104490.0,104480.0,0.78161656]
[1750254958430,0.00119217,104490.0,104480.0,0.86474217]
[1750254959302,0.00119217,104490.0,104480.0,0.89534217]
[1750254959516,0.00119217,104490.0,104480.0,0.92534217]
[1750254961638,0.00119217,104490.0,104480.0,0.63116997]
[1750254961851,0.00019217,104490.0,104480.0,0.77374912]
[1750254962058,0.00019217,104490.0,104480.0,0.55698912]
[1750254962267,0.00019217,104490.0,104480.0,0.32794912]
[1750254962479,0.03847131,104490.0,104480.0,0.36681846]
[1750254962687,0.00019217,104490.0,104480.0,0.53609846]
[1750254963130,0.00019217,104490.0,104480.0,0.6098097]
[1750254963514,0.00019217,104490.0,104480.0,0.6088097]
[1750254963864,0.00119217,104490.0,104480.0,0.62335055]
[1750254964285,0.00119217,104490.0,104480.0,0.62235055]
[1750254964484,0.00119217,104490.0,104480.0,0.54863931]
[1750254964771,0.02033156,104490.0,104480.0,0.53405846]
[1750254964978,0.01076173,104490.0,104480.0,0.31637846]
[1750254965193,0.00119217,104490.0,104480.0,0.31637846]
[1750254965393,0.00119217,104490.0,104480.0,0.5857577]
[1750254967435,0.01076163,104490.0,104480.0,0.5857577]
[1750254967641,0.00119217,104490.0,104480.0,0.5857577]
[1750254967844,0.02990167,104490.0,104480.0,0.31637846]
[1750254968056,0.01076173,104490.0,104480.0,0.53361846]
[1750254968265,0.02033147,104490.0,104480.0,0.31637846]
[1750254968445,0.02033147,104490.0,104480.0,0.53361846]
[1750254968649,0.0299013,104490.0,104480.0,0.53357846]
[1750254968849,0.02033138,104490.0,104480.0,0.53357846]
[1750254969054,0.02273105,104490.0,104480.0,0.53357846]
[1750254969256,0.00359184,104490.0,104480.0,0.6070377]
[1750254969667,0.00119217,104490.0,104480.0,0.6070377]
[1750254970751,0.00119217,104490.0,104480.0,0.6063577]
[1750254970942,0.00119217,104490.0,104480.0,0.3898377]
[1750254971088,0.00119217,104490.0,104480.0,0.6063977]
[1750254971319,0.00119217,104490.0,104480.0,0.62093855]
[1750254971836,0.00119217,104490.0,104480.0,0.65253855]
[1750254972268,0.00119217,104490.0,104480.0,0.54747931]
[1750254972602,0.00019217,104490.0,104480.0,0.54747931]
[1750254973009,0.01793769,104490.0,104480.0,0.57887931]
[1750254973499,0.02681407,104490.0,104480.0,0.54827931]
[1750254973940,0.02681407,104490.0,104480.0,0.54927931]
[1750254974116,0.02681407,104490.0,104480.0,0.62430863]
[1750254974680,0.02681411,104490.0,104480.0,0.62430863]
[1750254974912,0.02681411,104490.0,104480.0,0.54927931]
[1750254975365,0.02681411,104490.0,104480.0,0.58147931]
[1750254976078,0.02681411,104490.0,104480.0,0.58207931]
[1750254976313,0.02681411,104490.0,104480.0,0.61237931]
[1750254976550,0.02681411,104490.0,104480.0,0.69371863]
[1750254977242,0.02681411,104490.0,104480.0,0.61237931]
[1750254977444,0.02692298,104490.0,104480.0,0.58191931]
[1750254978174,0.02692298,104490.0,104480.0,0.58187931]
[1750254978979,0.02692298,104490.0,104480.0,0.56287931]
[1750254979186,0.02692298,104490.0,104480.0,0.77903931]
[1750254979574,0.02692298,104490.0,104480.0,0.42807664]
[1750254979808,0.02692298,104490.0,104480.0,0.33291931]
[1750254980054,0.02707626,104490.0,104480.0,0.33291931]
[1750254980291,0.02707626,104490.0,104480.0,0.54895931]
[1750254982151,0.02707626,104490.0,104480.0,0.33291931]
[1750254982382,0.02707626,104490.0,104480.0,0.54875931]
[1750254982793,0.0181149,104490.0,104480.0,0.64490853]
[1750254983311,3.46307085,104510.0,104500.0,0.21052602]
[1750254983531,3.4793649,104510.0,104500.0,0.38805503]
[1750254983763,3.4793649,104510.0,104500.0,0.16796]
[1750254983982,0.27082654,104500.0,104490.0,0.19140587]
[1750254984203,3.56816958,104500.0,104490.0,0.41661607]
[1750254984386,0.0191392,104490.0,104480.0,0.4145275]
[1750254984658,0.0287094,104490.0,104480.0,0.6291675]
[1750254984903,0.0191392,104490.0,104480.0,0.6291675]
[1750254985096,0.02870912,104490.0,104480.0,0.6291675]
[1750254985369,3.55255218,104490.0,104480.0,0.04884]
[1750254985624,3.55255218,104490.0,104480.0,0.40698419]
[1750254985901,3.55255218,104490.0,104480.0,0.41655521]
[1750254986117,3.55927873,104490.0,104480.0,0.41655521]
[1750254986341,3.36114594,104490.0,104480.0,0.41655521]
[1750254986573,3.5631221,104490.0,104480.0,0.4356968]
[1750254986800,3.56212201,104490.0,104480.0,0.53289175]
[1750254987010,3.56212247,104490.0,104480.0,0.40698419]
[1750254987267,3.55655236,104490.0,104480.0,0.21556]
[1750254987506,3.55655236,104490.0,104480.0,0.42612632]
[1750254987723,3.36514603,104490.0,104480.0,0.44522763]
[1750254987939,3.57569175,104490.0,104480.0,0.43565707]
[1750254988160,3.5661221,104490.0,104480.0,0.43565707]
[1750254988361,3.31091623,104490.0,104480.0,0.44522773]
[1750254988598,3.51189239,104490.0,104480.0,0.44522773]
[1750254988789,3.30134603,104490.0,104480.0,0.44522773]
[1750254989229,3.30134603,104490.0,104480.0,0.42608632]
[1750254989230,3.50232219,104490.0,104480.0,0.42608632]
[1750254989427,3.30134603,104490.0,104480.0,0.43565698]
[1750254989721,3.30134603,104490.0,104480.0,0.42608632]
[1750254989918,3.5023221,104490.0,104480.0,0.43573698]
[1750254990472,3.51189239,104490.0,104480.0,0.43573698]
[1750254990676,3.51189239,104490.0,104480.0,0.41659539]
[1750254990876,0.00957056,104480.0,104470.0,0.44054583]
[1750254991095,3.56074288,104480.0,104470.0,0.47895671]
[1750254991295,3.37888953,104480.0,104470.0,0.66569994]
[1750254992225,3.57988492,104480.0,104470.0,0.66570012]
[1750254992399,3.57031436,104480.0,104470.0,0.66570012]
[1750254992825,3.56174352,104480.0,104470.0,0.64655671]
[1750254992976,3.36074777,104480.0,104470.0,0.48852865]
[1750254993176,3.36074777,104480.0,104470.0,0.67511188]
[1750254993586,3.56174316,104480.0,104470.0,0.23010217]
[1750254993812,3.55217241,104480.0,104470.0,0.44534217]
[1750254994042,3.55217241,104480.0,104470.0,0.23010217]
[1750254994263,3.55217241,104480.0,104470.0,0.27794217]
[1750254994484,3.55217241,104480.0,104470.0,0.23010217]
[1750254994723,3.55217241,104480.0,104470.0,0.27794217]
[1750254995169,3.57009503,104480.0,104470.0,0.27794217]
[1750254995413,3.57009503,104480.0,104470.0,0.23010217]
[1750254995640,3.57009503,104480.0,104470.0,0.27794217]
[1750254995888,3.57009503,104480.0,104470.0,0.4789568]
[1750254996112,3.35952862,104480.0,104470.0,0.55506443]
[1750254996332,3.53929458,104480.0,104470.0,0.76065277]
[1750254996561,3.55843616,104480.0,104470.0,0.77979619]
[1750254996770,3.35744086,104480.0,104470.0,0.77979555]
[1750254996982,3.32584086,104480.0,104470.0,0.77979555]
[1750254997208,3.52683616,104480.0,104470.0,0.77022407]
[1750254997425,3.50891354,104480.0,104470.0,0.7606925]
[1750254997644,3.50891427,104480.0,104470.0,0.7606925]
[1750254997851,3.5513725,104480.0,104470.0,0.63674468]
[1750254998025,3.5513725,104480.0,104470.0,0.66546031]
[1750254998439,3.5513725,104480.0,104470.0,0.45026031]
[1750254998646,3.5513725,104480.0,104470.0,0.66542031]
[1750254998852,3.5513725,104480.0,104470.0,0.65584865]
[1750254999055,3.5513725,104480.0,104470.0,0.65584883]
[1750254999262,3.54180139,104480.0,104470.0,0.44530217]
[1750254999462,3.54180139,104480.0,104470.0,0.65588847]
[1750254999660,3.28877638,104480.0,104470.0,0.74824771]
[1750254999863,3.30791769,104480.0,104470.0,0.84448947]
[1750255000084,3.30791769,104480.0,104470.0,0.77127346]
[1750255000290,3.50891363,104480.0,104470.0,0.64547662]
[1750255000403,3.57011363,104480.0,104470.0,0.64547662]
[1750255000927,3.55097232,104480.0,104470.0,0.27710217]
[1750255001965,3.55097232,104480.0,104470.0,0.28667429]
[1750255002333,3.54997232,104480.0,104470.0,0.4781168]
[1750255002528,3.53183019,104480.0,104470.0,0.27710217]
[1750255002859,3.54440139,104480.0,104470.0,0.47811671]
[1750255003059,3.50234289,104480.0,104470.0,0.58092114]
[1750255003263,3.51191409,104480.0,104470.0,0.58092114]
[1750255003511,3.4927725,104480.0,104470.0,0.27710217]
[1750255003842,3.54620139,104480.0,104470.0,0.44446217]
[1750255004055,3.54620139,104480.0,104470.0,0.46854468]
[1750255004208,3.51360139,104480.0,104470.0,0.66462031]
[1750255004387,3.51360139,104480.0,104470.0,0.6646205]
[1750255004600,3.51360139,104480.0,104470.0,0.65504865]
[1750255004796,3.50403019,104480.0,104470.0,0.64547671]
[1750255005383,3.30134777,104480.0,104470.0,0.66462031]
[1750255005584,3.282206,104480.0,104470.0,0.86558136]
[1750255005784,0.004,104480.0,104470.0,0.92688136]
[1750255006081,0.004,104480.0,104470.0,0.94142221]
[1750255006496,0.003,104480.0,104470.0,0.94142221]
[1750255006673,3.34012765,104500.0,104490.0,0.22011564]
[1750255006904,0.26192165,104500.0,104490.0,0.4161084]
[1750255007106,0.46287839,104500.0,104490.0,0.37786599]
[1750255007261,0.47244767,104500.0,104490.0,0.37786599]
[1750255007462,0.47244849,104500.0,104490.0,0.38743582]
[1750255007672,0.2523531,104500.0,104490.0,0.50281697]
[1750255007987,0.46287839,104500.0,104490.0,0.56266978]
[1750255008118,0.26192229,104500.0,104490.0,0.56266978]
[1750255008321,0.26492229,104500.0,104490.0,0.57223943]
[1750255008543,0.2553531,104500.0,104490.0,0.57223943]
[1750255008845,0.4648793,104500.0,104490.0,0.55310004]
[1750255009046,0.27349175,104500.0,104490.0,0.57223943]
[1750255009247,0.27449175,104500.0,104490.0,0.49324732]
[1750255009448,0.2553531,104500.0,104490.0,0.50281697]
[1750255009651,0.26492238,104500.0,104490.0,0.50281697]
[1750255010077,0.03621527,104500.0,104490.0,0.58325782]
[1750255011177,0.03521527,104500.0,104490.0,0.58325782]
[1750255011386,0.03521527,104500.0,104490.0,0.66834958]
[1750255011790,0.03321527,104500.0,104490.0,0.71534958]
[1750255012030,3.278206,104510.0,104500.0,0.22009457]
[1750255012236,3.278206,104510.0,104500.0,0.34903633]
[1750255013106,0.04221887,104510.0,104500.0,0.34903633]
[1750255013310,0.24321887,104510.0,104500.0,0.34903633]
[1750255013521,0.26235478,104510.0,104500.0,0.31633633]
[1750255013728,0.27492296,104510.0,104500.0,0.31633633]
[1750255013926,0.26535478,104510.0,104500.0,0.31633633]
[1750255014141,0.51292465,104510.0,104500.0,0.29719859]
[1750255014348,0.21256782,104510.0,104500.0,0.54018543]
[1750255014558,0.43264096,104510.0,104500.0,0.5306167]
[1750255014762,0.24127172,104510.0,104500.0,0.54975435]
[1750255014971,3.21895561,104510.0,104500.0,0.54018562]
[1750255015176,0.04784092,104510.0,104500.0,0.54975444]
[1750255015380,0.43921016,104510.0,104500.0,0.62387047]
[1750255015585,0.43921016,104510.0,104500.0,0.61430165]
[1750255015794,0.42964234,104510.0,104500.0,0.59516372]
[1750255016000,0.42007434,104510.0,104500.0,0.51147859]
[1750255016228,0.48197434,104510.0,104500.0,0.29719859]
[1750255016407,0.01913783,104500.0,104490.0,0.22968538]
[1750255016671,0.23827566,104500.0,104490.0,0.54020714]
[1750255016879,3.25934512,104500.0,104490.0,0.51149783]
[1750255017082,3.22854512,104500.0,104490.0,0.61046765]
[1750255017294,3.28177611,104500.0,104490.0,0.28764763]
[1750255017498,3.28177611,104500.0,104490.0,0.51149792]
[1750255017748,3.28177611,104500.0,104490.0,0.52106812]
[1750255017972,3.27220692,104500.0,104490.0,0.51149792]
[1750255018179,3.27220692,104500.0,104490.0,0.52106812]
[1750255018413,3.27220692,104500.0,104490.0,0.53263804]
[1750255018633,3.03715647,104500.0,104490.0,0.54220787]
[1750255018851,3.02758737,104500.0,104490.0,0.55177752]
[1750255019060,3.04672566,104500.0,104490.0,0.55177761]
[1750255019476,3.22854466,104500.0,104490.0,0.21254636]
[1750255019687,3.21897584,104500.0,104490.0,0.42682636]
[1750255019893,3.21897584,104500.0,104490.0,0.43635637]
[1750255020133,3.21897584,104500.0,104490.0,0.44592629]
[1750255020344,3.21897584,104500.0,104490.0,0.45549603]
[1750255020570,0.01913765,104500.0,104490.0,0.62309576]
[1750255020782,0.22870684,104500.0,104490.0,0.62309576]
[1750255021254,0.01914085,104480.0,104470.0,0.49431653]
[1750255021434,3.21899618,104490.0,104470.0,0.75116922]
[1750255021678,0.0191414,104480.0,104470.0,0.5465017]
[1750255021888,0.02871215,104480.0,104470.0,0.7607417]
[1750255022092,0.02871169,104480.0,104470.0,0.7607417]
[1750255022294,0.02871169,104480.0,104470.0,0.75305192]
[1750255022504,0.03828262,104480.0,104470.0,0.75305192]
[1750255022722,0.23828262,104480.0,104470.0,0.75405192]
[1750255023156,0.23828262,104480.0,104470.0,0.53981192]
[1750255023157,0.24785364,104480.0,104470.0,0.53981192]
[1750255023373,0.22970736,104480.0,104470.0,0.53024044]
[1750255023593,0.21914122,104480.0,104470.0,0.76362349]
[1750255023804,0.20097616,104490.0,104480.0,0.01914177]
[1750255024013,3.00845,104490.0,104480.0,0.30680772]
[1750255024225,3.01801882,104500.0,104490.0,0.21054599]
[1750255024440,3.03715647,104500.0,104490.0,0.22004357]
[1750255024662,3.04162488,104510.0,104500.0,0.22009457]
[1750255024877,3.26169821,104510.0,104500.0,0.35376778]
[1750255025100,3.27126667,104510.0,104500.0,0.36333688]
[1750255025309,3.27126667,104510.0,104500.0,0.38247481]
[1750255025514,3.07989734,104510.0,104500.0,0.38247435]
[1750255025727,3.07989724,104510.0,104500.0,0.38247389]
[1750255025931,3.07532906,104510.0,104500.0,0.41014524]
[1750255026054,3.08489743,104510.0,104500.0,0.32590516]
[1750255026258,3.07532906,104510.0,104500.0,0.51143859]
[1750255026669,3.25913076,104510.0,104500.0,0.31048176]
[1750255026870,0.20956946,104490.0,104480.0,0.3176177]
[1750255027080,0.21913957,104490.0,104480.0,0.53061828]
[1750255027277,0.4105459,104490.0,104480.0,0.34423706]
[1750255027511,0.4105459,104490.0,104480.0,0.51147715]
[1750255027777,0.4105459,104490.0,104480.0,0.53061883]
[1750255028213,0.4211161,104490.0,104480.0,0.54018949]
[1750255028419,0.23071023,104490.0,104480.0,0.64590927]
[1750255028630,0.23071023,104490.0,104480.0,0.54018949]
[1750255028847,0.22113957,104490.0,104480.0,0.54976005]
[1750255029058,0.23070968,104490.0,104480.0,0.53061883]
[1750255029287,0.23070968,104490.0,104480.0,0.54018939]
[1750255029498,0.39178412,104510.0,104490.0,0.21054563]
[1750255029710,0.39178412,104510.0,104490.0,0.34905722]